Workbook

Sheet List1
A1: vynuluj = | B1: FALSE
A2: d = | B2: 0.63
A3: Δx = | B3: =B2/126 -> 0.005
A4: Δt = | B4: 0.01 | E4: povrch 1 | EB4: povrch 2
A5: lambda = | B5: 1.3 | D5: Počáteční teplota | E5: 40 | F5: 20 | G5: 20 | H5: 20 | I5: 20 | J5: 20 | K5: 20 | L5: 20 | M5: 20 | N5: 20 | O5: 20 | P5: 20 | Q5: 20 | R5: 20 | S5: 20 | T5: 20 | U5: 20 | V5: 20 | W5: 20 | X5: 20 | Y5: 20 | Z5: 20 | AA5: 20 | AB5: 20 | AC5: 20 | AD5: 20 | AE5: 20 | AF5: 20 | AG5: 20 | AH5: 20 | AI5: 20 | AJ5: 20 | AK5: 20 | AL5: 20 | AM5: 20 | AN5: 20 | AO5: 20 | AP5: 20 | AQ5: 20 | AR5: 20 | AS5: 20 | AT5: 20 | AU5: 20 | AV5: 20 | AW5: 20 | AX5: 20 | AY5: 20 | AZ5: 20 | BA5: 20 | BB5: 20 | BC5: 20 | BD5: 20 | BE5: 20 | BF5: 20 | BG5: 20 | BH5: 20 | BI5: 20 | BJ5: 20 | BK5: 20 | BL5: 20 | BM5: 20 | BN5: 20 | BO5: 20 | BP5: 20 | BQ5: 20 | BR5: 20 | BS5: 20 | BT5: 20 | BU5: 20 | BV5: 20 | BW5: 20 | BX5: 20 | BY5: 20 | BZ5: 20 | CA5: 20 | CB5: 20 | CC5: 20 | CD5: 20 | CE5: 20 | CF5: 20 | CG5: 20 | CH5: 20 | CI5: 20 | CJ5: 20 | CK5: 20 | CL5: 20 | CM5: 20 | CN5: 20 | CO5: 20 | CP5: 20 | CQ5: 20 | CR5: 20 | CS5: 20 | CT5: 20 | CU5: 20 | CV5: 20 | CW5: 20 | CX5: 20 | CY5: 20 | CZ5: 20 | DA5: 20 | DB5: 20 | DC5: 20 | DD5: 20 | DE5: 20 | DF5: 20 | DG5: 20 | DH5: 20 | DI5: 20 | DJ5: 20 | DK5: 20 | DL5: 20 | DM5: 20 | DN5: 20 | DO5: 20 | DP5: 20 | DQ5: 20 | DR5: 20 | DS5: 20 | DT5: 20 | DU5: 20 | DV5: 20 | DW5: 20 | DX5: 20 | DY5: 20 | DZ5: 20 | EA5: 20 | EB5: 20
A6: c = | B6: 1000 | D6: i - tá iterace | E6: 40 | F6: =IF(start,F5,F10) -> 37.32464388 | G6: 32.27515829 | H6: =IF(start,H5,H10) -> 28.02737803 | I6: 24.83354808 | J6: 22.67864678 | K6: 21.36762255 | L6: 20.6446058 | M6: 20.28122247 | N6: 20.11390362 | O6: 20.04296591 | P6: 20.01514191 | Q6: 20.00500089 | R6: 20.00155242 | S6: 20.00045424 | T6: 20.00012561 | U6: 20.00003291 | V6: 20.00000819 | W6: 20.00000194 | X6: 20.00000044 | Y6: 20.00000009 | Z6: 20.00000002 | AA6: 20 | AB6: 20 | AC6: 20 | AD6: 20 | AE6: 20 | AF6: 20 | AG6: 20 | AH6: 20 | AI6: 20 | AJ6: 20 | AK6: 20 | AL6: 20 | AM6: 20 | AN6: 20 | AO6: 20 | AP6: 20 | AQ6: 20 | AR6: 20 | AS6: 20 | AT6: 20 | AU6: 20 | AV6: 20 | AW6: 20 | AX6: 20 | AY6: 20 | AZ6: 20 | BA6: 20 | BB6: 20 | BC6: 20 | BD6: 20 | BE6: 20 | BF6: 20 | BG6: 20 | BH6: 20 | BI6: 20 | BJ6: 20 | BK6: 20 | BL6: 20 | BM6: 20 | BN6: 20 | BO6: 20 | BP6: 20 | BQ6: 20 | BR6: 20 | BS6: 20 | BT6: =IF(start,BT5,BT10) -> 20 | BU6: 20 | BV6: 20 | BW6: 20 | BX6: 20 | BY6: 20 | BZ6: 20 | CA6: 20 | CB6: 20 | CC6: 20 | CD6: 20 | CE6: 20 | CF6: 20 | CG6: 20 | CH6: 20 | CI6: 20 | CJ6: 20 | CK6: 20 | CL6: 20 | CM6: 20 | CN6: 20 | CO6: 20 | CP6: 20 | CQ6: 20 | CR6: 20 | CS6: 20 | CT6: 20 | CU6: 20 | CV6: 20 | CW6: 20 | CX6: 20 | CY6: 20 | CZ6: 20 | DA6: 20 | DB6: 20 | DC6: 20 | DD6: 20 | DE6: 20 | DF6: 20 | DG6: 20 | DH6: 20 | DI6: 20 | DJ6: 20 | DK6: 20 | DL6: 20 | DM6: 20 | DN6: 20 | DO6: 20 | DP6: 20 | DQ6: 20 | DR6: 20 | DS6: 20 | DT6: 20 | DU6: 20 | DV6: 20 | DW6: 20 | DX6: 20 | DY6: 20 | DZ6: 20 | EA6: =IF(start,EA5,EA10) -> 20 | EB6: 20
A7: Rho = | B7: 2200 | D7: tok zleva | F7: =(E6-F6)*λ/(Δx/2) -> 1391.185184 | G7: =(F6-G6)*λ/Δx -> 1312.866253 | H7: =(G6-H6)*λ/Δx -> 1104.422866 | I7: =(H6-I6)*λ/Δx -> 830.3957885 | J7: =(I6-J6)*λ/Δx -> 560.2743381 | K7: =(J6-K6)*λ/Δx -> 340.8662998 | L7: =(K6-L6)*λ/Δx -> 187.9843549 | M7: =(L6-M6)*λ/Δx -> 94.47966481 | N7: =(M6-N6)*λ/Δx -> 43.50290174 | O7: =(N6-O6)*λ/Δx -> 18.44380524 | P7: =(O6-P6)*λ/Δx -> 7.234238269 | Q7: =(P6-Q6)*λ/Δx -> 2.636666506 | R7: =(Q6-R6)*λ/Δx -> 0.8966015294 | S7: =(R6-S6)*λ/Δx -> 0.2855258872 | T7: =(S6-T6)*λ/Δx -> 0.08544379977 | U7: =(T6-U6)*λ/Δx -> 0.02410292353 | V7: =(U6-V6)*λ/Δx -> 0.006427857777 | W7: =(V6-W6)*λ/Δx -> 0.001624882 | X7: =(W6-X6)*λ/Δx -> 0.000390297822 | Y7: =(X6-Y6)*λ/Δx -> 8.928241861e-05 | Z7: =(Y6-Z6)*λ/Δx -> 1.949095576e-05 | AA7: =(Z6-AA6)*λ/Δx -> 4.068475903e-06 | AB7: =(AA6-AB6)*λ/Δx -> 8.134548324e-07 | AC7: =(AB6-AC6)*λ/Δx -> 1.560397322e-07 | AD7: =(AC6-AD6)*λ/Δx -> 2.874017468e-08 | AE7: =(AD6-AE6)*λ/Δx -> 5.019415994e-09 | AF7: =(AE6-AF6)*λ/Δx -> 1.108446668e-09 | AG7: =(AF6-AG6)*λ/Δx -> 0 | AH7: =(AG6-AH6)*λ/Δx -> 0 | AI7: =(AH6-AI6)*λ/Δx -> 0 | AJ7: =(AI6-AJ6)*λ/Δx -> 0 | AK7: =(AJ6-AK6)*λ/Δx -> 0 | AL7: =(AK6-AL6)*λ/Δx -> 0 | AM7: =(AL6-AM6)*λ/Δx -> 0 | AN7: =(AM6-AN6)*λ/Δx -> 0 | AO7: =(AN6-AO6)*λ/Δx -> 0 | AP7: =(AO6-AP6)*λ/Δx -> 0 | AQ7: =(AP6-AQ6)*λ/Δx -> 0 | AR7: =(AQ6-AR6)*λ/Δx -> 0 | AS7: =(AR6-AS6)*λ/Δx -> 0 | AT7: =(AS6-AT6)*λ/Δx -> 0 | AU7: =(AT6-AU6)*λ/Δx -> 0 | AV7: =(AU6-AV6)*λ/Δx -> 0 | AW7: =(AV6-AW6)*λ/Δx -> 0 | AX7: =(AW6-AX6)*λ/Δx -> 0 | AY7: =(AX6-AY6)*λ/Δx -> 0 | AZ7: =(AY6-AZ6)*λ/Δx -> 0 | BA7: =(AZ6-BA6)*λ/Δx -> 0 | BB7: =(BA6-BB6)*λ/Δx -> 0 | BC7: =(BB6-BC6)*λ/Δx -> 0 | BD7: =(BC6-BD6)*λ/Δx -> 0 | BE7: =(BD6-BE6)*λ/Δx -> 0 | BF7: =(BE6-BF6)*λ/Δx -> 0 | BG7: =(BF6-BG6)*λ/Δx -> 0 | BH7: =(BG6-BH6)*λ/Δx -> 0 | BI7: =(BH6-BI6)*λ/Δx -> 0 | BJ7: =(BI6-BJ6)*λ/Δx -> 0 | BK7: =(BJ6-BK6)*λ/Δx -> 0 | BL7: =(BK6-BL6)*λ/Δx -> 0 | BM7: =(BL6-BM6)*λ/Δx -> 0 | BN7: =(BM6-BN6)*λ/Δx -> 0 | BO7: =(BN6-BO6)*λ/Δx -> 0 | BP7: =(BO6-BP6)*λ/Δx -> 0 | BQ7: =(BP6-BQ6)*λ/Δx -> 0 | BR7: =(BQ6-BR6)*λ/Δx -> 0 | BS7: =(BR6-BS6)*λ/Δx -> 0 | BT7: =(BS6-BT6)*λ/Δx -> 0 | BU7: =(BT6-BU6)*λ/Δx -> 0 | BV7: =(BU6-BV6)*λ/Δx -> 0 | BW7: =(BV6-BW6)*λ/Δx -> 0 | BX7: =(BW6-BX6)*λ/Δx -> 0 | BY7: =(BX6-BY6)*λ/Δx -> 0 | BZ7: =(BY6-BZ6)*λ/Δx -> 0 | CA7: =(BZ6-CA6)*λ/Δx -> 0 | CB7: =(CA6-CB6)*λ/Δx -> 0 | CC7: =(CB6-CC6)*λ/Δx -> 0 | CD7: =(CC6-CD6)*λ/Δx -> 0 | CE7: =(CD6-CE6)*λ/Δx -> 0 | CF7: =(CE6-CF6)*λ/Δx -> 0 | CG7: =(CF6-CG6)*λ/Δx -> 0 | CH7: =(CG6-CH6)*λ/Δx -> 0 | CI7: =(CH6-CI6)*λ/Δx -> 0 | CJ7: =(CI6-CJ6)*λ/Δx -> 0 | CK7: =(CJ6-CK6)*λ/Δx -> 0 | CL7: =(CK6-CL6)*λ/Δx -> 0 | CM7: =(CL6-CM6)*λ/Δx -> 0 | CN7: =(CM6-CN6)*λ/Δx -> 0 | CO7: =(CN6-CO6)*λ/Δx -> 0 | CP7: =(CO6-CP6)*λ/Δx -> 0 | CQ7: =(CP6-CQ6)*λ/Δx -> 0 | CR7: =(CQ6-CR6)*λ/Δx -> 0 | CS7: =(CR6-CS6)*λ/Δx -> 0 | CT7: =(CS6-CT6)*λ/Δx -> 0 | CU7: =(CT6-CU6)*λ/Δx -> 0 | CV7: =(CU6-CV6)*λ/Δx -> 0 | CW7: =(CV6-CW6)*λ/Δx -> 0 | CX7: =(CW6-CX6)*λ/Δx -> 0 | CY7: =(CX6-CY6)*λ/Δx -> 0 | CZ7: =(CY6-CZ6)*λ/Δx -> 0 | DA7: =(CZ6-DA6)*λ/Δx -> 0 | DB7: =(DA6-DB6)*λ/Δx -> 0 | DC7: =(DB6-DC6)*λ/Δx -> 0 | DD7: =(DC6-DD6)*λ/Δx -> 0 | DE7: =(DD6-DE6)*λ/Δx -> 0 | DF7: =(DE6-DF6)*λ/Δx -> 0 | DG7: =(DF6-DG6)*λ/Δx -> 0 | DH7: =(DG6-DH6)*λ/Δx -> 0 | DI7: =(DH6-DI6)*λ/Δx -> 0 | DJ7: =(DI6-DJ6)*λ/Δx -> 0 | DK7: =(DJ6-DK6)*λ/Δx -> 0 | DL7: =(DK6-DL6)*λ/Δx -> 0 | DM7: =(DL6-DM6)*λ/Δx -> 0 | DN7: =(DM6-DN6)*λ/Δx -> 0 | DO7: =(DN6-DO6)*λ/Δx -> 0 | DP7: =(DO6-DP6)*λ/Δx -> 0 | DQ7: =(DP6-DQ6)*λ/Δx -> 0 | DR7: =(DQ6-DR6)*λ/Δx -> 0 | DS7: =(DR6-DS6)*λ/Δx -> 0 | DT7: =(DS6-DT6)*λ/Δx -> 0 | DU7: =(DT6-DU6)*λ/Δx -> 0 | DV7: =(DU6-DV6)*λ/Δx -> 0 | DW7: =(DV6-DW6)*λ/Δx -> 0 | DX7: =(DW6-DX6)*λ/Δx -> 0 | DY7: =(DX6-DY6)*λ/Δx -> 0 | DZ7: =(DY6-DZ6)*λ/Δx -> 0 | EA7: =(DZ6-EA6)*λ/Δx -> 0
D8: tok doprava | F8: =(F6-G6)*λ/(Δx) -> 1312.866253 | G8: 1104.422866 | H8: =(H6-I6)*λ/(Δx) -> 830.3957885 | I8: =(I6-J6)*λ/(Δx) -> 560.2743381 | J8: =(J6-K6)*λ/(Δx) -> 340.8662998 | K8: =(K6-L6)*λ/(Δx) -> 187.9843549 | L8: =(L6-M6)*λ/(Δx) -> 94.47966481 | M8: =(M6-N6)*λ/(Δx) -> 43.50290174 | N8: =(N6-O6)*λ/(Δx) -> 18.44380524 | O8: =(O6-P6)*λ/(Δx) -> 7.234238269 | P8: =(P6-Q6)*λ/(Δx) -> 2.636666506 | Q8: =(Q6-R6)*λ/(Δx) -> 0.8966015294 | R8: =(R6-S6)*λ/(Δx) -> 0.2855258872 | S8: =(S6-T6)*λ/(Δx) -> 0.08544379977 | T8: =(T6-U6)*λ/(Δx) -> 0.02410292353 | U8: =(U6-V6)*λ/(Δx) -> 0.006427857777 | V8: =(V6-W6)*λ/(Δx) -> 0.001624882 | W8: =(W6-X6)*λ/(Δx) -> 0.000390297822 | X8: =(X6-Y6)*λ/(Δx) -> 8.928241861e-05 | Y8: =(Y6-Z6)*λ/(Δx) -> 1.949095576e-05 | Z8: =(Z6-AA6)*λ/(Δx) -> 4.068475903e-06 | AA8: =(AA6-AB6)*λ/(Δx) -> 8.134548324e-07 | AB8: =(AB6-AC6)*λ/(Δx) -> 1.560397322e-07 | AC8: =(AC6-AD6)*λ/(Δx) -> 2.874017468e-08 | AD8: =(AD6-AE6)*λ/(Δx) -> 5.019415994e-09 | AE8: =(AE6-AF6)*λ/(Δx) -> 1.108446668e-09 | AF8: =(AF6-AG6)*λ/(Δx) -> 0 | AG8: =(AG6-AH6)*λ/(Δx) -> 0 | AH8: =(AH6-AI6)*λ/(Δx) -> 0 | AI8: =(AI6-AJ6)*λ/(Δx) -> 0 | AJ8: =(AJ6-AK6)*λ/(Δx) -> 0 | AK8: =(AK6-AL6)*λ/(Δx) -> 0 | AL8: =(AL6-AM6)*λ/(Δx) -> 0 | AM8: =(AM6-AN6)*λ/(Δx) -> 0 | AN8: =(AN6-AO6)*λ/(Δx) -> 0 | AO8: =(AO6-AP6)*λ/(Δx) -> 0 | AP8: =(AP6-AQ6)*λ/(Δx) -> 0 | AQ8: =(AQ6-AR6)*λ/(Δx) -> 0 | AR8: =(AR6-AS6)*λ/(Δx) -> 0 | AS8: =(AS6-AT6)*λ/(Δx) -> 0 | AT8: =(AT6-AU6)*λ/(Δx) -> 0 | AU8: =(AU6-AV6)*λ/(Δx) -> 0 | AV8: =(AV6-AW6)*λ/(Δx) -> 0 | AW8: =(AW6-AX6)*λ/(Δx) -> 0 | AX8: =(AX6-AY6)*λ/(Δx) -> 0 | AY8: =(AY6-AZ6)*λ/(Δx) -> 0 | AZ8: =(AZ6-BA6)*λ/(Δx) -> 0 | BA8: =(BA6-BB6)*λ/(Δx) -> 0 | BB8: =(BB6-BC6)*λ/(Δx) -> 0 | BC8: =(BC6-BD6)*λ/(Δx) -> 0 | BD8: =(BD6-BE6)*λ/(Δx) -> 0 | BE8: =(BE6-BF6)*λ/(Δx) -> 0 | BF8: =(BF6-BG6)*λ/(Δx) -> 0 | BG8: =(BG6-BH6)*λ/(Δx) -> 0 | BH8: =(BH6-BI6)*λ/(Δx) -> 0 | BI8: =(BI6-BJ6)*λ/(Δx) -> 0 | BJ8: =(BJ6-BK6)*λ/(Δx) -> 0 | BK8: =(BK6-BL6)*λ/(Δx) -> 0 | BL8: =(BL6-BM6)*λ/(Δx) -> 0 | BM8: =(BM6-BN6)*λ/(Δx) -> 0 | BN8: =(BN6-BO6)*λ/(Δx) -> 0 | BO8: =(BO6-BP6)*λ/(Δx) -> 0 | BP8: =(BP6-BQ6)*λ/(Δx) -> 0 | BQ8: =(BQ6-BR6)*λ/(Δx) -> 0 | BR8: =(BR6-BS6)*λ/(Δx) -> 0 | BS8: =(BS6-BT6)*λ/(Δx) -> 0 | BT8: =(BT6-BU6)*λ/(Δx) -> 0 | BU8: =(BU6-BV6)*λ/(Δx) -> 0 | BV8: =(BV6-BW6)*λ/(Δx) -> 0 | BW8: =(BW6-BX6)*λ/(Δx) -> 0 | BX8: =(BX6-BY6)*λ/(Δx) -> 0 | BY8: =(BY6-BZ6)*λ/(Δx) -> 0 | BZ8: =(BZ6-CA6)*λ/(Δx) -> 0 | CA8: =(CA6-CB6)*λ/(Δx) -> 0 | CB8: =(CB6-CC6)*λ/(Δx) -> 0 | CC8: =(CC6-CD6)*λ/(Δx) -> 0 | CD8: =(CD6-CE6)*λ/(Δx) -> 0 | CE8: =(CE6-CF6)*λ/(Δx) -> 0 | CF8: =(CF6-CG6)*λ/(Δx) -> 0 | CG8: =(CG6-CH6)*λ/(Δx) -> 0 | CH8: =(CH6-CI6)*λ/(Δx) -> 0 | CI8: =(CI6-CJ6)*λ/(Δx) -> 0 | CJ8: =(CJ6-CK6)*λ/(Δx) -> 0 | CK8: =(CK6-CL6)*λ/(Δx) -> 0 | CL8: =(CL6-CM6)*λ/(Δx) -> 0 | CM8: =(CM6-CN6)*λ/(Δx) -> 0 | CN8: =(CN6-CO6)*λ/(Δx) -> 0 | CO8: =(CO6-CP6)*λ/(Δx) -> 0 | CP8: =(CP6-CQ6)*λ/(Δx) -> 0 | CQ8: =(CQ6-CR6)*λ/(Δx) -> 0 | CR8: =(CR6-CS6)*λ/(Δx) -> 0 | CS8: =(CS6-CT6)*λ/(Δx) -> 0 | CT8: =(CT6-CU6)*λ/(Δx) -> 0 | CU8: =(CU6-CV6)*λ/(Δx) -> 0 | CV8: =(CV6-CW6)*λ/(Δx) -> 0 | CW8: =(CW6-CX6)*λ/(Δx) -> 0 | CX8: =(CX6-CY6)*λ/(Δx) -> 0 | CY8: =(CY6-CZ6)*λ/(Δx) -> 0 | CZ8: =(CZ6-DA6)*λ/(Δx) -> 0 | DA8: =(DA6-DB6)*λ/(Δx) -> 0 | DB8: =(DB6-DC6)*λ/(Δx) -> 0 | DC8: =(DC6-DD6)*λ/(Δx) -> 0 | DD8: =(DD6-DE6)*λ/(Δx) -> 0 | DE8: =(DE6-DF6)*λ/(Δx) -> 0 | DF8: =(DF6-DG6)*λ/(Δx) -> 0 | DG8: =(DG6-DH6)*λ/(Δx) -> 0 | DH8: =(DH6-DI6)*λ/(Δx) -> 0 | DI8: =(DI6-DJ6)*λ/(Δx) -> 0 | DJ8: =(DJ6-DK6)*λ/(Δx) -> 0 | DK8: =(DK6-DL6)*λ/(Δx) -> 0 | DL8: =(DL6-DM6)*λ/(Δx) -> 0 | DM8: =(DM6-DN6)*λ/(Δx) -> 0 | DN8: =(DN6-DO6)*λ/(Δx) -> 0 | DO8: =(DO6-DP6)*λ/(Δx) -> 0 | DP8: =(DP6-DQ6)*λ/(Δx) -> 0 | DQ8: =(DQ6-DR6)*λ/(Δx) -> 0 | DR8: =(DR6-DS6)*λ/(Δx) -> 0 | DS8: =(DS6-DT6)*λ/(Δx) -> 0 | DT8: =(DT6-DU6)*λ/(Δx) -> 0 | DU8: =(DU6-DV6)*λ/(Δx) -> 0 | DV8: =(DV6-DW6)*λ/(Δx) -> 0 | DW8: =(DW6-DX6)*λ/(Δx) -> 0 | DX8: =(DX6-DY6)*λ/(Δx) -> 0 | DY8: =(DY6-DZ6)*λ/(Δx) -> 0 | DZ8: =(DZ6-EA6)*λ/(Δx) -> 0 | EA8: =(EA6-EB6)*λ/(Δx/2) -> 0
A9: t max/m = | B9: 120 | D9: Δθ - změna teploty | F9: =(F7-F8)/(ρ*cp*Δx)*Δt -> 7.119902771e-05 | G9: 0.0001894939886 | H9: =(H7-H8)/(ρ*cp*Δx)*Δt -> 0.0002491155249 | I9: 0.0002455649549 | J9: 0.000199461853 | K9: 0.0001389835863 | L9: 8.500426369e-05 | M9: 4.634251188e-05 | N9: 2.278099681e-05 | O9: 1.019051543e-05 | P9: 4.179610694e-06 | Q9: 1.581877251e-06 | R9: 5.555233111e-07 | S9: 1.818928068e-07 | T9: 5.576443294e-08 | U9: 1.60682416e-08 | V9: 4.366341615e-09 | W9: 1.122349253e-09 | X9: 2.736503667e-10 | Y9: 6.344678441e-11 | Z9: 1.402043624e-11 | AA9: 2.959110064e-12 | AB9: 5.97650091e-13 | AC9: 1.157268705e-13 | AD9: 2.156432608e-14 | AE9: 3.55542666e-15 | AF9: 1.007678789e-15 | AG9: 0 | AH9: 0 | AI9: 0 | AJ9: 0 | AK9: 0 | AL9: 0 | AM9: 0 | AN9: 0 | AO9: 0 | AP9: 0 | AQ9: 0 | AR9: 0 | AS9: 0 | AT9: 0 | AU9: 0 | AV9: 0 | AW9: 0 | AX9: 0 | AY9: 0 | AZ9: 0 | BA9: 0 | BB9: 0 | BC9: 0 | BD9: 0 | BE9: 0 | BF9: 0 | BG9: 0 | BH9: 0 | BI9: 0 | BJ9: 0 | BK9: 0 | BL9: 0 | BM9: 0 | BN9: 0 | BO9: 0 | BP9: 0 | BQ9: 0 | BR9: 0 | BS9: 0 | BT9: =(BT7-BT8)/(ρ*cp*Δx)*Δt -> 0 | BU9: 0 | BV9: 0 | BW9: 0 | BX9: 0 | BY9: 0 | BZ9: 0 | CA9: 0 | CB9: 0 | CC9: 0 | CD9: 0 | CE9: 0 | CF9: 0 | CG9: 0 | CH9: 0 | CI9: 0 | CJ9: 0 | CK9: 0 | CL9: 0 | CM9: 0 | CN9: 0 | CO9: 0 | CP9: 0 | CQ9: 0 | CR9: 0 | CS9: 0 | CT9: 0 | CU9: 0 | CV9: 0 | CW9: 0 | CX9: 0 | CY9: 0 | CZ9: 0 | DA9: 0 | DB9: 0 | DC9: 0 | DD9: 0 | DE9: 0 | DF9: 0 | DG9: 0 | DH9: 0 | DI9: 0 | DJ9: 0 | DK9: 0 | DL9: 0 | DM9: 0 | DN9: 0 | DO9: 0 | DP9: 0 | DQ9: 0 | DR9: 0 | DS9: 0 | DT9: 0 | DU9: 0 | DV9: 0 | DW9: 0 | DX9: 0 | DY9: 0 | DZ9: 0 | EA9: =(EA7-EA8)/(ρ*cp*Δx)*Δt -> 0
A10: čas/m = | B10: =IF(start,0,B10+Δt/60) -> 3.228 | D10: i+1. iterace | E10: 40 | F10: =F6+F9 -> 37.32471508 | G10: 32.27534778 | H10: =H6+H9 -> 28.02762715 | I10: 24.83379364 | J10: 22.67884624 | K10: 21.36776153 | L10: 20.6446058 | M10: 20.28122247 | N10: 20.11390362 | O10: 20.04296591 | P10: 20.01514191 | Q10: 20.00500089 | R10: 20.00155242 | S10: 20.00045424 | T10: 20.00012561 | U10: 20.00003291 | V10: 20.00000819 | W10: 20.00000194 | X10: 20.00000044 | Y10: 20.00000009 | Z10: 20.00000002 | AA10: 20 | AB10: 20 | AC10: 20 | AD10: 20 | AE10: 20 | AF10: 20 | AG10: 20 | AH10: 20 | AI10: 20 | AJ10: 20 | AK10: 20 | AL10: 20 | AM10: 20 | AN10: 20 | AO10: 20 | AP10: 20 | AQ10: 20 | AR10: 20 | AS10: 20 | AT10: 20 | AU10: 20 | AV10: 20 | AW10: 20 | AX10: 20 | AY10: 20 | AZ10: 20 | BA10: 20 | BB10: 20 | BC10: 20 | BD10: 20 | BE10: 20 | BF10: 20 | BG10: 20 | BH10: 20 | BI10: 20 | BJ10: 20 | BK10: 20 | BL10: 20 | BM10: 20 | BN10: 20 | BO10: 20 | BP10: 20 | BQ10: 20 | BR10: 20 | BS10: 20 | BT10: =BT6+BT9 -> 20 | BU10: 20 | BV10: 20 | BW10: 20 | BX10: 20 | BY10: 20 | BZ10: 20 | CA10: 20 | CB10: 20 | CC10: 20 | CD10: 20 | CE10: 20 | CF10: 20 | CG10: 20 | CH10: 20 | CI10: 20 | CJ10: 20 | CK10: 20 | CL10: 20 | CM10: 20 | CN10: 20 | CO10: 20 | CP10: 20 | CQ10: 20 | CR10: 20 | CS10: 20 | CT10: 20 | CU10: 20 | CV10: 20 | CW10: 20 | CX10: 20 | CY10: 20 | CZ10: 20 | DA10: 20 | DB10: 20 | DC10: 20 | DD10: 20 | DE10: 20 | DF10: 20 | DG10: 20 | DH10: 20 | DI10: 20 | DJ10: 20 | DK10: 20 | DL10: 20 | DM10: 20 | DN10: 20 | DO10: 20 | DP10: 20 | DQ10: 20 | DR10: 20 | DS10: 20 | DT10: 20 | DU10: 20 | DV10: 20 | DW10: 20 | DX10: 20 | DY10: 20 | DZ10: 20 | EA10: =EA6+EA9 -> 20 | EB10: 20
D11: x | E11: 0 | F11: =Δx/2 -> 0.0025 | G11: =F11+Δx -> 0.0075 | H11: =G11+Δx -> 0.0125 | I11: =H11+Δx -> 0.0175 | J11: =I11+Δx -> 0.0225 | K11: =J11+Δx -> 0.0275 | L11: =K11+Δx -> 0.0325 | M11: =L11+Δx -> 0.0375 | N11: =M11+Δx -> 0.0425 | O11: =N11+Δx -> 0.0475 | P11: =O11+Δx -> 0.0525 | Q11: =P11+Δx -> 0.0575 | R11: =Q11+Δx -> 0.0625 | S11: =R11+Δx -> 0.0675 | T11: =S11+Δx -> 0.0725 | U11: =T11+Δx -> 0.0775 | V11: =U11+Δx -> 0.0825 | W11: =V11+Δx -> 0.0875 | X11: =W11+Δx -> 0.0925 | Y11: =X11+Δx -> 0.0975 | Z11: =Y11+Δx -> 0.1025 | AA11: =Z11+Δx -> 0.1075 | AB11: =AA11+Δx -> 0.1125 | AC11: =AB11+Δx -> 0.1175 | AD11: =AC11+Δx -> 0.1225 | AE11: =AD11+Δx -> 0.1275 | AF11: =AE11+Δx -> 0.1325 | AG11: =AF11+Δx -> 0.1375 | AH11: =AG11+Δx -> 0.1425 | AI11: =AH11+Δx -> 0.1475 | AJ11: =AI11+Δx -> 0.1525 | AK11: =AJ11+Δx -> 0.1575 | AL11: =AK11+Δx -> 0.1625 | AM11: =AL11+Δx -> 0.1675 | AN11: =AM11+Δx -> 0.1725 | AO11: =AN11+Δx -> 0.1775 | AP11: =AO11+Δx -> 0.1825 | AQ11: =AP11+Δx -> 0.1875 | AR11: =AQ11+Δx -> 0.1925 | AS11: =AR11+Δx -> 0.1975 | AT11: =AS11+Δx -> 0.2025 | AU11: =AT11+Δx -> 0.2075 | AV11: =AU11+Δx -> 0.2125 | AW11: =AV11+Δx -> 0.2175 | AX11: =AW11+Δx -> 0.2225 | AY11: =AX11+Δx -> 0.2275 | AZ11: =AY11+Δx -> 0.2325 | BA11: =AZ11+Δx -> 0.2375 | BB11: =BA11+Δx -> 0.2425 | BC11: =BB11+Δx -> 0.2475 | BD11: =BC11+Δx -> 0.2525 | BE11: =BD11+Δx -> 0.2575 | BF11: =BE11+Δx -> 0.2625 | BG11: =BF11+Δx -> 0.2675 | BH11: =BG11+Δx -> 0.2725 | BI11: =BH11+Δx -> 0.2775 | BJ11: =BI11+Δx -> 0.2825 | BK11: =BJ11+Δx -> 0.2875 | BL11: =BK11+Δx -> 0.2925 | BM11: =BL11+Δx -> 0.2975 | BN11: =BM11+Δx -> 0.3025 | BO11: =BN11+Δx -> 0.3075 | BP11: =BO11+Δx -> 0.3125 | BQ11: =BP11+Δx -> 0.3175 | BR11: =BQ11+Δx -> 0.3225 | BS11: =BR11+Δx -> 0.3275 | BT11: =BS11+Δx -> 0.3325 | BU11: =BT11+Δx -> 0.3375 | BV11: =BU11+Δx -> 0.3425 | BW11: =BV11+Δx -> 0.3475 | BX11: =BW11+Δx -> 0.3525 | BY11: =BX11+Δx -> 0.3575 | BZ11: =BY11+Δx -> 0.3625 | CA11: =BZ11+Δx -> 0.3675 | CB11: =CA11+Δx -> 0.3725 | CC11: =CB11+Δx -> 0.3775 | CD11: =CC11+Δx -> 0.3825 | CE11: =CD11+Δx -> 0.3875 | CF11: =CE11+Δx -> 0.3925 | CG11: =CF11+Δx -> 0.3975 | CH11: =CG11+Δx -> 0.4025 | CI11: =CH11+Δx -> 0.4075 | CJ11: =CI11+Δx -> 0.4125 | CK11: =CJ11+Δx -> 0.4175 | CL11: =CK11+Δx -> 0.4225 | CM11: =CL11+Δx -> 0.4275 | CN11: =CM11+Δx -> 0.4325 | CO11: =CN11+Δx -> 0.4375 | CP11: =CO11+Δx -> 0.4425 | CQ11: =CP11+Δx -> 0.4475 | CR11: =CQ11+Δx -> 0.4525 | CS11: =CR11+Δx -> 0.4575 | CT11: =CS11+Δx -> 0.4625 | CU11: =CT11+Δx -> 0.4675 | CV11: =CU11+Δx -> 0.4725 | CW11: =CV11+Δx -> 0.4775 | CX11: =CW11+Δx -> 0.4825 | CY11: =CX11+Δx -> 0.4875 | CZ11: =CY11+Δx -> 0.4925 | DA11: =CZ11+Δx -> 0.4975 | DB11: =DA11+Δx -> 0.5025 | DC11: =DB11+Δx -> 0.5075 | DD11: =DC11+Δx -> 0.5125 | DE11: =DD11+Δx -> 0.5175 | DF11: =DE11+Δx -> 0.5225 | DG11: =DF11+Δx -> 0.5275 | DH11: =DG11+Δx -> 0.5325 | DI11: =DH11+Δx -> 0.5375 | DJ11: =DI11+Δx -> 0.5425 | DK11: =DJ11+Δx -> 0.5475 | DL11: =DK11+Δx -> 0.5525 | DM11: =DL11+Δx -> 0.5575 | DN11: =DM11+Δx -> 0.5625 | DO11: =DN11+Δx -> 0.5675 | DP11: =DO11+Δx -> 0.5725 | DQ11: =DP11+Δx -> 0.5775 | DR11: =DQ11+Δx -> 0.5825 | DS11: =DR11+Δx -> 0.5875 | DT11: =DS11+Δx -> 0.5925 | DU11: =DT11+Δx -> 0.5975 | DV11: =DU11+Δx -> 0.6025 | DW11: =DV11+Δx -> 0.6075 | DX11: =DW11+Δx -> 0.6125 | DY11: =DX11+Δx -> 0.6175 | DZ11: =DY11+Δx -> 0.6225 | EA11: =DZ11+Δx -> 0.6275 | EB11: =EA11+Δx/2 -> 0.63
A12: hloubka penetrace | B12: =4*SQRT(λ/ρ/cp*$B10*60) -> 0.04279090813 | D12: analyticky | E12: =20+($E5-20)*(1-ERF(E11/SQRT(4*λ/ρ/cp*$B10*60))) -> 40 | F12: =20+($E5-20)*(1-ERF(F11/SQRT(4*λ/ρ/cp*$B10*60))) -> 37.37499197 | G12: =20+($E5-20)*(1-ERF(G11/SQRT(4*λ/ρ/cp*$B10*60))) -> 32.40154449 | H12: =20+($E5-20)*(1-ERF(H11/SQRT(4*λ/ρ/cp*$B10*60))) -> 28.17341778 | I12: =20+($E5-20)*(1-ERF(I11/SQRT(4*λ/ρ/cp*$B10*60))) -> 24.9476638 | J12: =20+($E5-20)*(1-ERF(J11/SQRT(4*λ/ρ/cp*$B10*60))) -> 22.73912 | K12: =20+($E5-20)*(1-ERF(K11/SQRT(4*λ/ρ/cp*$B10*60))) -> 21.38214905 | L12: =20+($E5-20)*(1-ERF(L11/SQRT(4*λ/ρ/cp*$B10*60))) -> 20.63394061 | M12: =20+($E5-20)*(1-ERF(M11/SQRT(4*λ/ρ/cp*$B10*60))) -> 20.26372099 | N12: =20+($E5-20)*(1-ERF(N11/SQRT(4*λ/ρ/cp*$B10*60))) -> 20.09933004 | O12: =20+($E5-20)*(1-ERF(O11/SQRT(4*λ/ρ/cp*$B10*60))) -> 20.03382506 | P12: =20+($E5-20)*(1-ERF(P11/SQRT(4*λ/ρ/cp*$B10*60))) -> 20.01040195 | Q12: =20+($E5-20)*(1-ERF(Q11/SQRT(4*λ/ρ/cp*$B10*60))) -> 20.00288599 | R12: =20+($E5-20)*(1-ERF(R11/SQRT(4*λ/ρ/cp*$B10*60))) -> 20.00072183 | S12: =20+($E5-20)*(1-ERF(S11/SQRT(4*λ/ρ/cp*$B10*60))) -> 20.00016265 | T12: =20+($E5-20)*(1-ERF(T11/SQRT(4*λ/ρ/cp*$B10*60))) -> 20.000033 | U12: =20+($E5-20)*(1-ERF(U11/SQRT(4*λ/ρ/cp*$B10*60))) -> 20.00000603 | V12: =20+($E5-20)*(1-ERF(V11/SQRT(4*λ/ρ/cp*$B10*60))) -> 20.00000099 | W12: =20+($E5-20)*(1-ERF(W11/SQRT(4*λ/ρ/cp*$B10*60))) -> 20.00000015 | X12: =20+($E5-20)*(1-ERF(X11/SQRT(4*λ/ρ/cp*$B10*60))) -> 20.00000002 | Y12: =20+($E5-20)*(1-ERF(Y11/SQRT(4*λ/ρ/cp*$B10*60))) -> 20 | Z12: =20+($E5-20)*(1-ERF(Z11/SQRT(4*λ/ρ/cp*$B10*60))) -> 20 | AA12: =20+($E5-20)*(1-ERF(AA11/SQRT(4*λ/ρ/cp*$B10*60))) -> 20 | AB12: =20+($E5-20)*(1-ERF(AB11/SQRT(4*λ/ρ/cp*$B10*60))) -> 20 | AC12: =20+($E5-20)*(1-ERF(AC11/SQRT(4*λ/ρ/cp*$B10*60))) -> 20 | AD12: =20+($E5-20)*(1-ERF(AD11/SQRT(4*λ/ρ/cp*$B10*60))) -> 20 | AE12: =20+($E5-20)*(1-ERF(AE11/SQRT(4*λ/ρ/cp*$B10*60))) -> 20 | AF12: =20+($E5-20)*(1-ERF(AF11/SQRT(4*λ/ρ/cp*$B10*60))) -> 20 | AG12: =20+($E5-20)*(1-ERF(AG11/SQRT(4*λ/ρ/cp*$B10*60))) -> 20 | AH12: =20+($E5-20)*(1-ERF(AH11/SQRT(4*λ/ρ/cp*$B10*60))) -> 20 | AI12: =20+($E5-20)*(1-ERF(AI11/SQRT(4*λ/ρ/cp*$B10*60))) -> 20 | AJ12: =20+($E5-20)*(1-ERF(AJ11/SQRT(4*λ/ρ/cp*$B10*60))) -> 20 | AK12: =20+($E5-20)*(1-ERF(AK11/SQRT(4*λ/ρ/cp*$B10*60))) -> 20 | AL12: =20+($E5-20)*(1-ERF(AL11/SQRT(4*λ/ρ/cp*$B10*60))) -> 20 | AM12: =20+($E5-20)*(1-ERF(AM11/SQRT(4*λ/ρ/cp*$B10*60))) -> 20 | AN12: =20+($E5-20)*(1-ERF(AN11/SQRT(4*λ/ρ/cp*$B10*60))) -> 20 | AO12: =20+($E5-20)*(1-ERF(AO11/SQRT(4*λ/ρ/cp*$B10*60))) -> 20 | AP12: =20+($E5-20)*(1-ERF(AP11/SQRT(4*λ/ρ/cp*$B10*60))) -> 20 | AQ12: =20+($E5-20)*(1-ERF(AQ11/SQRT(4*λ/ρ/cp*$B10*60))) -> 20 | AR12: =20+($E5-20)*(1-ERF(AR11/SQRT(4*λ/ρ/cp*$B10*60))) -> 20 | AS12: =20+($E5-20)*(1-ERF(AS11/SQRT(4*λ/ρ/cp*$B10*60))) -> 20 | AT12: =20+($E5-20)*(1-ERF(AT11/SQRT(4*λ/ρ/cp*$B10*60))) -> 20 | AU12: =20+($E5-20)*(1-ERF(AU11/SQRT(4*λ/ρ/cp*$B10*60))) -> 20 | AV12: =20+($E5-20)*(1-ERF(AV11/SQRT(4*λ/ρ/cp*$B10*60))) -> 20 | AW12: =20+($E5-20)*(1-ERF(AW11/SQRT(4*λ/ρ/cp*$B10*60))) -> 20 | AX12: =20+($E5-20)*(1-ERF(AX11/SQRT(4*λ/ρ/cp*$B10*60))) -> 20 | AY12: =20+($E5-20)*(1-ERF(AY11/SQRT(4*λ/ρ/cp*$B10*60))) -> 20 | AZ12: =20+($E5-20)*(1-ERF(AZ11/SQRT(4*λ/ρ/cp*$B10*60))) -> 20 | BA12: =20+($E5-20)*(1-ERF(BA11/SQRT(4*λ/ρ/cp*$B10*60))) -> 20 | BB12: =20+($E5-20)*(1-ERF(BB11/SQRT(4*λ/ρ/cp*$B10*60))) -> 20 | BC12: =20+($E5-20)*(1-ERF(BC11/SQRT(4*λ/ρ/cp*$B10*60))) -> 20 | BD12: =20+($E5-20)*(1-ERF(BD11/SQRT(4*λ/ρ/cp*$B10*60))) -> 20 | BE12: =20+($E5-20)*(1-ERF(BE11/SQRT(4*λ/ρ/cp*$B10*60))) -> 20 | BF12: =20+($E5-20)*(1-ERF(BF11/SQRT(4*λ/ρ/cp*$B10*60))) -> 20 | BG12: =20+($E5-20)*(1-ERF(BG11/SQRT(4*λ/ρ/cp*$B10*60))) -> 20 | BH12: =20+($E5-20)*(1-ERF(BH11/SQRT(4*λ/ρ/cp*$B10*60))) -> 20 | BI12: =20+($E5-20)*(1-ERF(BI11/SQRT(4*λ/ρ/cp*$B10*60))) -> 20 | BJ12: =20+($E5-20)*(1-ERF(BJ11/SQRT(4*λ/ρ/cp*$B10*60))) -> 20 | BK12: =20+($E5-20)*(1-ERF(BK11/SQRT(4*λ/ρ/cp*$B10*60))) -> 20 | BL12: =20+($E5-20)*(1-ERF(BL11/SQRT(4*λ/ρ/cp*$B10*60))) -> 20 | BM12: =20+($E5-20)*(1-ERF(BM11/SQRT(4*λ/ρ/cp*$B10*60))) -> 20 | BN12: =20+($E5-20)*(1-ERF(BN11/SQRT(4*λ/ρ/cp*$B10*60))) -> 20 | BO12: =20+($E5-20)*(1-ERF(BO11/SQRT(4*λ/ρ/cp*$B10*60))) -> 20 | BP12: =20+($E5-20)*(1-ERF(BP11/SQRT(4*λ/ρ/cp*$B10*60))) -> 20 | BQ12: =20+($E5-20)*(1-ERF(BQ11/SQRT(4*λ/ρ/cp*$B10*60))) -> 20 | BR12: =20+($E5-20)*(1-ERF(BR11/SQRT(4*λ/ρ/cp*$B10*60))) -> 20 | BS12: =20+($E5-20)*(1-ERF(BS11/SQRT(4*λ/ρ/cp*$B10*60))) -> 20 | BT12: =20+($E5-20)*(1-ERF(BT11/SQRT(4*λ/ρ/cp*$B10*60))) -> 20 | BU12: =20+($E5-20)*(1-ERF(BU11/SQRT(4*λ/ρ/cp*$B10*60))) -> 20 | BV12: =20+($E5-20)*(1-ERF(BV11/SQRT(4*λ/ρ/cp*$B10*60))) -> 20 | BW12: =20+($E5-20)*(1-ERF(BW11/SQRT(4*λ/ρ/cp*$B10*60))) -> 20 | BX12: =20+($E5-20)*(1-ERF(BX11/SQRT(4*λ/ρ/cp*$B10*60))) -> 20 | BY12: =20+($E5-20)*(1-ERF(BY11/SQRT(4*λ/ρ/cp*$B10*60))) -> 20 | BZ12: =20+($E5-20)*(1-ERF(BZ11/SQRT(4*λ/ρ/cp*$B10*60))) -> 20 | CA12: =20+($E5-20)*(1-ERF(CA11/SQRT(4*λ/ρ/cp*$B10*60))) -> 20 | CB12: =20+($E5-20)*(1-ERF(CB11/SQRT(4*λ/ρ/cp*$B10*60))) -> 20 | CC12: =20+($E5-20)*(1-ERF(CC11/SQRT(4*λ/ρ/cp*$B10*60))) -> 20 | CD12: =20+($E5-20)*(1-ERF(CD11/SQRT(4*λ/ρ/cp*$B10*60))) -> 20 | CE12: =20+($E5-20)*(1-ERF(CE11/SQRT(4*λ/ρ/cp*$B10*60))) -> 20 | CF12: =20+($E5-20)*(1-ERF(CF11/SQRT(4*λ/ρ/cp*$B10*60))) -> 20 | CG12: =20+($E5-20)*(1-ERF(CG11/SQRT(4*λ/ρ/cp*$B10*60))) -> 20 | CH12: =20+($E5-20)*(1-ERF(CH11/SQRT(4*λ/ρ/cp*$B10*60))) -> 20 | CI12: =20+($E5-20)*(1-ERF(CI11/SQRT(4*λ/ρ/cp*$B10*60))) -> 20 | CJ12: =20+($E5-20)*(1-ERF(CJ11/SQRT(4*λ/ρ/cp*$B10*60))) -> 20 | CK12: =20+($E5-20)*(1-ERF(CK11/SQRT(4*λ/ρ/cp*$B10*60))) -> 20 | CL12: =20+($E5-20)*(1-ERF(CL11/SQRT(4*λ/ρ/cp*$B10*60))) -> 20 | CM12: =20+($E5-20)*(1-ERF(CM11/SQRT(4*λ/ρ/cp*$B10*60))) -> 20 | CN12: =20+($E5-20)*(1-ERF(CN11/SQRT(4*λ/ρ/cp*$B10*60))) -> 20 | CO12: =20+($E5-20)*(1-ERF(CO11/SQRT(4*λ/ρ/cp*$B10*60))) -> 20 | CP12: =20+($E5-20)*(1-ERF(CP11/SQRT(4*λ/ρ/cp*$B10*60))) -> 20 | CQ12: =20+($E5-20)*(1-ERF(CQ11/SQRT(4*λ/ρ/cp*$B10*60))) -> 20 | CR12: =20+($E5-20)*(1-ERF(CR11/SQRT(4*λ/ρ/cp*$B10*60))) -> 20 | CS12: =20+($E5-20)*(1-ERF(CS11/SQRT(4*λ/ρ/cp*$B10*60))) -> 20 | CT12: =20+($E5-20)*(1-ERF(CT11/SQRT(4*λ/ρ/cp*$B10*60))) -> 20 | CU12: =20+($E5-20)*(1-ERF(CU11/SQRT(4*λ/ρ/cp*$B10*60))) -> 20 | CV12: =20+($E5-20)*(1-ERF(CV11/SQRT(4*λ/ρ/cp*$B10*60))) -> 20 | CW12: =20+($E5-20)*(1-ERF(CW11/SQRT(4*λ/ρ/cp*$B10*60))) -> 20 | CX12: =20+($E5-20)*(1-ERF(CX11/SQRT(4*λ/ρ/cp*$B10*60))) -> 20 | CY12: =20+($E5-20)*(1-ERF(CY11/SQRT(4*λ/ρ/cp*$B10*60))) -> 20 | CZ12: =20+($E5-20)*(1-ERF(CZ11/SQRT(4*λ/ρ/cp*$B10*60))) -> 20 | DA12: =20+($E5-20)*(1-ERF(DA11/SQRT(4*λ/ρ/cp*$B10*60))) -> 20 | DB12: =20+($E5-20)*(1-ERF(DB11/SQRT(4*λ/ρ/cp*$B10*60))) -> 20 | DC12: =20+($E5-20)*(1-ERF(DC11/SQRT(4*λ/ρ/cp*$B10*60))) -> 20 | DD12: =20+($E5-20)*(1-ERF(DD11/SQRT(4*λ/ρ/cp*$B10*60))) -> 20 | DE12: =20+($E5-20)*(1-ERF(DE11/SQRT(4*λ/ρ/cp*$B10*60))) -> 20 | DF12: =20+($E5-20)*(1-ERF(DF11/SQRT(4*λ/ρ/cp*$B10*60))) -> 20 | DG12: =20+($E5-20)*(1-ERF(DG11/SQRT(4*λ/ρ/cp*$B10*60))) -> 20 | DH12: =20+($E5-20)*(1-ERF(DH11/SQRT(4*λ/ρ/cp*$B10*60))) -> 20 | DI12: =20+($E5-20)*(1-ERF(DI11/SQRT(4*λ/ρ/cp*$B10*60))) -> 20 | DJ12: =20+($E5-20)*(1-ERF(DJ11/SQRT(4*λ/ρ/cp*$B10*60))) -> 20 | DK12: =20+($E5-20)*(1-ERF(DK11/SQRT(4*λ/ρ/cp*$B10*60))) -> 20 | DL12: =20+($E5-20)*(1-ERF(DL11/SQRT(4*λ/ρ/cp*$B10*60))) -> 20 | DM12: =20+($E5-20)*(1-ERF(DM11/SQRT(4*λ/ρ/cp*$B10*60))) -> 20 | DN12: =20+($E5-20)*(1-ERF(DN11/SQRT(4*λ/ρ/cp*$B10*60))) -> 20 | DO12: =20+($E5-20)*(1-ERF(DO11/SQRT(4*λ/ρ/cp*$B10*60))) -> 20 | DP12: =20+($E5-20)*(1-ERF(DP11/SQRT(4*λ/ρ/cp*$B10*60))) -> 20 | DQ12: =20+($E5-20)*(1-ERF(DQ11/SQRT(4*λ/ρ/cp*$B10*60))) -> 20 | DR12: =20+($E5-20)*(1-ERF(DR11/SQRT(4*λ/ρ/cp*$B10*60))) -> 20 | DS12: =20+($E5-20)*(1-ERF(DS11/SQRT(4*λ/ρ/cp*$B10*60))) -> 20 | DT12: =20+($E5-20)*(1-ERF(DT11/SQRT(4*λ/ρ/cp*$B10*60))) -> 20 | DU12: =20+($E5-20)*(1-ERF(DU11/SQRT(4*λ/ρ/cp*$B10*60))) -> 20 | DV12: =20+($E5-20)*(1-ERF(DV11/SQRT(4*λ/ρ/cp*$B10*60))) -> 20 | DW12: =20+($E5-20)*(1-ERF(DW11/SQRT(4*λ/ρ/cp*$B10*60))) -> 20 | DX12: =20+($E5-20)*(1-ERF(DX11/SQRT(4*λ/ρ/cp*$B10*60))) -> 20 | DY12: =20+($E5-20)*(1-ERF(DY11/SQRT(4*λ/ρ/cp*$B10*60))) -> 20 | DZ12: =20+($E5-20)*(1-ERF(DZ11/SQRT(4*λ/ρ/cp*$B10*60))) -> 20 | EA12: =20+($E5-20)*(1-ERF(EA11/SQRT(4*λ/ρ/cp*$B10*60))) -> 20 | EB12: =20+($E5-20)*(1-ERF(EB11/SQRT(4*λ/ρ/cp*$B10*60))) -> 20
